Cogmind - Beta 16 @@@ ROGUE MODE // 2025.12.21 @ 01:21:59 Player: useeikick Result: Destroyed by G-47 Trooper with Particle Gun Performance ------------- Evolutions (0) 0 Regions Visited (2) 400 Robots Destroyed (12) 60 Value Destroyed (330) 330 Prototype IDs (2) 40 Alien Tech Used (0) 0 Bonus (0) 0 TOTAL SCORE: 830 Bonus ------- None Cogmind --------- Core Integrity 0/250 Matter 300/300 Energy 121/125 System Corruption 0% Temperature Cool (11) Movement Walking (120) Location -10/Mines Parts ------- > --- POWER (1) -------- Light Ion Engine > --- PROPULSION (2) --- Aluminum Leg Aluminum Leg > --- UTILITY (2) ------ Visual Processing Unit Signal Interpreter > --- WEAPON (2) ------- Autogun Makeshift Axe > --- INVENTORY (5) ---- Ion Engine Aluminum Leg Flight Unit Improved Heat Sink Datajack Peak State ------------ > --- POWER ------------ Light Ion Engine > --- PROPULSION ------- Aluminum Leg Aluminum Leg > --- UTILITY ---------- Visual Processing Unit Signal Interpreter > --- WEAPON ----------- Autogun Makeshift Axe > --- INVENTORY -------- Ion Engine Aluminum Leg Flight Unit Improved Heat Sink Datajack [Rating: 12] Favorites ----------- Power Light Ion Engine Engine Light Ion Engine Propulsion Aluminum Leg Leg Aluminum Leg Wheel Compact Wheel Hover Unit Hover Unit Flight Unit Flight Unit Utility Visual Processing Unit Processor Visual Processing Unit Protection Light Armor Plating Weapon Autogun Ballistic Gun Autogun Impact Weapon Flail Slashing Weapon Mining Claw Special Melee Weapon Datajack Build | -11 -10 -10 ------- Run | Yrd Mat Min Slots Evolved . | . . . Power . | . . . Propulsion . | . . . Utility . | . . . Weapon . | . . . Parts Attached 21 | 4 16 1 Power 4 | 1 3 . Engine 4 | 1 3 . Core . | . . . Reactor . | . . . Propulsion 8 | 2 6 . Treads . | . . . Leg 2 | . 2 . Wheel 2 | 2 . . Hover 1 | . 1 . Flight 3 | . 3 . Utility 3 | . 3 . Device . | . . . Storage . | . . . Processor 2 | . 2 . Hackware . | . . . Protection 1 | . 1 . Artifact . | . . . Weapon 6 | 1 4 1 Energy Gun . | . . . Energy Cannon . | . . . Ballistic Gun 2 | 1 1 . Ballistic Cannon . | . . . Launcher . | . . . Special Weapon . | . . . Impact Weapon 1 | . 1 . Slashing Weapon 2 | . 1 1 Piercing Weapon . | . . . Special Melee Weapon 1 | . 1 . Unidentified Prototypes . | . . . Parts Lost 4 | . 3 1 Power . | . . . Propulsion 4 | . 3 1 Utility . | . . . Weapon . | . . . Highest Loss Streak 2 | . 2 1 To Critical Strikes . | . . . Average Backups 4 | . 4 4 Power 1 | . 1 1 Propulsion 2 | . 2 1 Utility . | . . . Weapon . | . . . Tool/Special . | . . . Unused Backups 3 | . 1 2 Power . | . . . Propulsion 2 | . 1 1 Utility 1 | . . 1 Weapon . | . . . Tool/Special . | . . . Average Slot Usage (%) 89 | . 82 99 Engine 14 | . 14 14 Leg 13 | . 8 19 Wheel 2 | . 3 . Flight 11 | . 13 7 Processor 21 | . 16 28 Ballistic Gun 13 | . 13 14 Impact Weapon 2 | . 3 . Slashing Weapon 8 | . 5 14 Peak Build Rating 12 | 4 10 12 Average Rating 8 | 3 7 10 On Entrance 4 | . 4 9 Avg Prop Armor Cover (%) 16 | 22 5 . Naked Turns . | . . . Heaviest Build 13 | 6 13 9 Greatest Support 32 | 32 32 20 Greatest Overweight (x) 1 | 1 1 . Average Overweight (x) . | . . . Largest Inventory Capacity 5 | 5 5 5 Average Capacity 5 | 5 5 5 Most Carried 5 | 3 5 5 Average Carried 4 | . 4 4 Final Capacity 5 | 5 5 5 Final Carried 5 | 3 4 5 Class Distribution -------------------- 62% | Mutant 37% | Scavenger-Mutant Dominant Class ---------------- Scavenger-Mutant | -10/Materials Mutant | -10/Mines Resources | -11 -10 -10 ----------- Run | Yrd Mat Min Matter Collected 471 | 238 190 43 Remotely . | . . . Salvage Created 416 | . 263 153 Parts 32 | . 21 11 Haulers Intercepted . | . . . Recyclers Shooed . | . . . Parts Field Recycled . | . . . Retrieved Matter . | . . . Parts Self-Destructed . | . . . Prevented . | . . . Parts Restored . | . . . Kills | -11 -10 -10 ------- Run | Yrd Mat Min Combat Hostiles Destroyed 10 | . 7 3 Melee 5 | . 2 3 Guns 5 | . 5 . Classes Destroyed 4 | . 3 1 Tunneler 1 | . . 1 Watcher 1 | . 1 . Swarmer 3 | . 3 . Grunt 7 | . 4 3 Best Kill Streak 2 | . 2 2 Combat Bots Only 2 | . 2 1 Max Kills in Single Turn 1 | . 1 1 Gunslinging . | . . . Exploded . | . . . Melee 1 | . 1 1 Uniques/NPCs Destroyed . | . . . Combat | -11 -10 -10 -------- Run | Yrd Mat Min Hostile Shots Fired 69 | . 35 34 Missed 19 | . 9 10 Hits 50 | . 26 24 Projectile 50 | . 26 24 Critical Strikes 1 | . . 1 Damage Taken 686 | . 382 304 Core 262 | . 105 157 Absorbed by Shields . | . . . Core Remaining (%) 100 | 100 . . Volleys Fired 27 | . 27 . Largest 1 | . 1 . Hottest 23 | . 23 . Shots Fired 27 | . 27 . Gun 27 | . 27 . Cannon . | . . . Launcher . | . . . Special . | . . . Kinetic 27 | . 27 . Thermal . | . . . Explosive . | . . . Electromagnetic . | . . . Robot Hit Streak 12 | . 12 . Robot Miss Streak 2 | . 2 . Penetration Max . | . . . Secondary Targets . | . . . Shots Hit Robots 36 | . 24 12 Core Hits 18 | . 13 5 Critical Kills . | . . . Critical Parts Destroyed . | . . . Critical Strikes . | . . . Melee Attacks 28 | . 7 21 Impact 1 | . 1 . Slashing 27 | . 6 21 Piercing . | . . . Sneak Attacks 3 | . 2 1 Combat Hostiles 1 | . 1 . Follow-up Attacks . | . . . Damage Inflicted 736 | . 358 378 Guns 192 | . 192 . Cannons . | . . . Explosions . | . . . Melee 538 | . 160 378 Ramming 6 | . 6 . Kinetic 192 | . 192 . Thermal . | . . . Explosive . | . . . Electromagnetic . | . . . Impact 34 | . 34 . Slashing 504 | . 126 378 Piercing . | . . . Highest Corruption . | . . . Average Corruption . | . . . Corruption Purged . | . . . Corruption Blocked . | . . . Overload Shots . | . . . Overflow Damage . | . . . Projectiles . | . . . Explosions . | . . . Melee . | . . . Knockbacks . | . . . Impact . | . . . Kinetic . | . . . Secondary . | . . . Self-Inflicted Damage 3 | . 3 . Shots . | . . . Rammed 1 | . 1 . Targets Rammed 1 | . 1 . Kicked . | . . . Crushed . | . . . Highest Temperature 12 | . 12 9 Average Temperature 7 | . 6 9 Received Heat Transfer 369 | . 174 195 Siege Activations . | . . . Martial Activations . | . . . Shielding Activations . | . . . Robots Disrupted . | . . . Combat Hostiles . | . . . Robots Corrupted . | . . . Combat Hostiles . | . . . Parts Fried . | . . . Impact Corruptions . | . . . Robots Melted . | . . . Combat Hostiles . | . . . Parts Melted . | . . . Heat Transferred . | . . . Parts Sabotaged . | . . . Parts Stolen . | . . . Parts Stripped . | . . . Power Chain Reactions . | . . . Alert | -11 -10 -10 ------- Run | Yrd Mat Min Maximum Alert Level . | . . . Low Security (%) 100 | 100 100 100 Level 1 . | . . . Level 2 . | . . . Level 3 . | . . . Level 4 . | . . . Level 5 . | . . . High Security . | . . . Max Security . | . . . Peak Influence 77 | . 77 41 Initial 16 | . . 16 Average 19 | . 31 8 Influence Increases 407 | . 287 120 Destroy 0b10 Robot/C 200 | . 140 60 Destroy 0b10 Robot/NC 10 | . 5 5 Destroy Leader 42 | . 32 10 Successful Hack 5 | . 5 . Partial Spotted 60 | . 45 15 Lose Combat Pursuer 90 | . 60 30 Influence Decreases 407 | . 244 163 Entered New Map 27 | . . 27 Time Decay 360 | . 234 126 Lost Part 20 | . 10 10 Squads Dispatched 1 | . 1 . Investigation . | . . . Extermination . | . . . Reinforcement 1 | . 1 . Assault . | . . . Garrison . | . . . Intercept . | . . . Searches Triggered . | . . . Construction Impeded . | . . . Haulers Reinforced . | . . . Active Scanning Responses . | . . . Cargo Convoy Interrupts . | . . . Stealth | -11 -10 -10 --------- Run | Yrd Mat Min Distress Signals 1 | . 1 . Communications Jammed . | . . . Distress Signals . | . . . Times Spotted 25 | . 17 8 Peak Tracking Total 4 | . 4 3 Tactical Retreats 3 | . 2 1 Traps | -11 -10 -10 ------- Run | Yrd Mat Min Traps Triggered 1 | . 1 . Indirectly . | . . . Trap Hack Attempts . | . . . Triggered . | . . . Disarmed . | . . . Reprogrammed . | . . . Reused . | . . . Traps Extracted . | . . . Installed . | . . . Triggered . | . . . Machines | -11 -10 -10 ---------- Run | Yrd Mat Min Machines Disabled . | . . . Max in Single Turn . | . . . Machines Repaired . | . . . Machines Dismantled . | . . . Machines Sabotaged . | . . . Overloaded Fab Kills . | . . . Hacking | -11 -10 -10 --------- Run | Yrd Mat Min Machines Accessed 5 | . 5 . Terminals 5 | . 5 . Fabricators . | . . . Repair Stations . | . . . Recycling Units . | . . . Scanalyzers . | . . . Garrison Access . | . . . Total Hacks 14 | . 14 . Successful 6 | . 6 . Failed 8 | . 8 . Catastrophic . | . . . Database Lockouts . | . . . Manual 9 | . 9 . Terminals 14 | . 14 . Fabricators . | . . . Repair Stations . | . . . Recycling Units . | . . . Scanalyzers . | . . . Garrison Access . | . . . Terminal Hacks 4 | . 4 . Robot Analysis 1 | . 1 . Prototype ID Bank 1 | . 1 . Alert Level 1 | . 1 . Maintenance Status 1 | . 1 . Fabricator Hacks . | . . . Repair Station Hacks . | . . . Recycling Unit Hacks . | . . . Scanalyzer . | . . . Garrison Access Hacks . | . . . Unauthorized Hacks 2 | . 2 . Terminals 2 | . 2 . Assimilate 2 | . 2 . Fabricators . | . . . Repair Stations . | . . . Recycling Units . | . . . Scanalyzers . | . . . Garrison Access . | . . . Data Cores Recovered . | . . . Used . | . . . Hacking Detections 5 | . 5 . Full Trace Events . | . . . Feedback Events . | . . . Feedback Blocked . | . . . Robot Schematics Acquired . | . . . Robots Built . | . . . Authchips . | . . . Time . | . . . Total Robot Build Rating . | . . . Part Schematics Acquired . | . . . Parts Built . | . . . Authchips . | . . . Time . | . . . Total Part Build Rating . | . . . Part Studies Acquired . | . . . Parts Repaired . | . . . Time . | . . . Parts Recycled . | . . . Recycled Matter . | . . . Retrieved Matter . | . . . Retrieved Components . | . . . Parts Scanalyzed . | . . . Part Schematics Acquired . | . . . Parts Damaged . | . . . Bothacking | -11 -10 -10 ------------ Run | Yrd Mat Min Used RIF Installer . | . . . Robots Hacked . | . . . Non-combat . | . . . Combat . | . . . Robot Hacks Applied . | . . . Relay Couplers Released . | . . . Fabnet Peak Effective % . | . . . Robots Rewired . | . . . Allies Hacked . | . . . Hacks Repelled . | . . . Allies | -11 -10 -10 -------- Run | Yrd Mat Min Total Allies 1 | . 1 . Largest Group 1 | . 1 . Highest-Rated Group 10 | . 10 . Highest-Rated Ally 10 | . 10 . Total Orders 1 | . 1 . STAY 1 | . 1 . Ally Attacks . | . . . Total Damage . | . . . Kills . | . . . Allies Corrupted . | . . . Allies Melted . | . . . Intel | -11 -10 -10 ------- Run | Yrd Mat Min Active Infowar (turns) 1052 | . 540 512 Optics 1052 | . 540 512 Robot Analysis Total 1 | . 1 . Derelict Logs Recovered 1 | . . 1 Drone Launches . | . . . Drone Recoveries . | . . . Exploration | -11 -10 -10 ------------- Run | Yrd Mat Min Turns Passed 1260 | 84 664 512 Spaces Moved 1423 | 86 794 543 Core 44 | 29 15 . Treads . | . . . Legs 414 | . 134 280 Wheels 122 | 57 65 . Hover 2 | . 2 . Flight 841 | . 578 263 Fastest Speed 37 | 50 37 37 Average Speed 67 | 84 57 79 Slowest Speed 120 | 100 120 120 Overloaded Moves . | . . . Propulsion Burnouts . | . . . Robots Hopped . | . . . Potential Cave-ins . | . . . Cave-ins Triggered . | . . . Exploration Rate (%) 51 | 3 80 71 Regions Visited 2 Branch Regions 1 Pre-discovered Areas 2 | . . 2 Known Exits Taken 1 | . 1 . Unknown Exits Taken 1 | 1 . . Scrap Searched . | . . . Spaces Dug . | . . . Terrain Destroyed . | . . . Melee . | . . . Projectile . | . . . AOE . | . . . Terrain Rammed . | . . . Walls Destroyed . | . . . Machines Disabled . | . . . Actions | -11 -10 -10 --------- Run | Yrd Mat Min Total 1646 | 96 962 588 Wait 114 | . 96 18 Move 1421 | 85 793 543 Hop . | . . . Pick Up 18 | 5 11 2 Fast Attach 7 | 4 3 . Attach 8 | . 7 1 Detach 1 | . 1 . Swap 10 | . 8 2 Drop 11 | 2 8 1 Fire 27 | . 27 . Melee 28 | . 7 21 Ram 1 | . 1 . Kick . | . . . Crush . | . . . Escape Stasis . | . . . Rewire . | . . . Trap . | . . . Miscellaneous . | . . . Route ------- -11/Scrapyard -10/Materials (discovered 3 exits: *Mat x2 / *Min) -10/Mines (discovered 1 exit: *Sub) History --------- Turn | Location | Event 22 | -11/Scrapyard | Discovered new exit (range 15) 85 | -11/Scrapyard | Entered Materials 304 | -10/Materials | Build established: Mutant 342 | -10/Materials | Discovered new exit (range 3) 497 | -10/Materials | Discovered new exit (range 18) 510 | -10/Materials | Identified exit to Materials 555 | -10/Materials | Discovered new exit (range 8) 558 | -10/Materials | Identified exit to Mines 726 | -10/Materials | Build established: Scavenger-Mutant 749 | -10/Materials | Entered Mines 750 | -10/Mines | Learned location of Storage (-9) 768 | -10/Mines | Core integrity fell below 50% 771 | -10/Mines | Met a Derelict bent on vengeance 971 | -10/Mines | Discovered new exit (range 6) 976 | -10/Mines | Identified exit to Subcaves 1002 | -10/Mines | A weapon hastily lodged in a ceiling crevice suddenly fell to the ground 1017 | -10/Mines | Learned location of Mines (-8) 1106 | -10/Mines | Core integrity fell below 20% 1180 | -10/Mines | Build established: Mutant 1261 | -10/Mines | Destroyed by G-47 Trooper with Particle Gun Last Messages --------------- 00879_ K-01 Serf collects debris. 00887_ Critical hit (Burn: +37). 00893_ G-47 Trooper destroyed. 00898_ Acquired 20 matter. 00901_ Acquired Imp. Heat Sink. 00903_ R-06 Scavenger collects Lgt. Nuclear Core. 00905_ Acquired Aluminum Leg. 00971_ EXIT=FOUND 00976_ EXIT=IDENTIFIED: SUBCAVES 01002_ A Mak. Axe has been hastily shoved under some rubble with a note attached: "Chop chop!" 01007_ Dropped Mining Claw. 01017_ Acquired derelict log, extracted data. World map updated: -8/Mines. 01046_ Acquired 10 matter. 01107_ G-34 Mercenary destroyed. 01124_ Sneak attack on T-07 Excavator. 01124_ T-07 Excavator destroyed. 01198_ K-01 Serf cleans the Pulverizer. Map ----- +----------------------------------------------------+ | ?????????????????????????????????????????????????? | | ????????????????????????????????????????????###### | | ????????????????????????????????????????????# | | ????????????????????????????????????????????# "" | | ???????????????????????# #########??????????# "" | | ???????????????????????# #??????????# "" | | ???????????????????????######### #??????????# | | ???????????????????????????????# #??????????# | | ???????????????????????????????# #??????????# | | ??????????????#????????????????# #??????????##### | | ???????????#### ???????????????# #??????????????# | | ???????????? ??????????????# #??????????????# | | ?????????????# ???????####??# #??????????????# | | ?????????????# #?????## #### ########???????# | | ??????????????# #???## #???????# | | ???????????????# #?## #???????# | | ???????????????# ## # ### #???????# | | ????????????????# ## #?# ######### | | ????????????????## ### #?# | | ????????????????## g ### #?# ########## | | ????????????????# k #?# #????????? | | ????????????????# ##gg ###### #????????? | | ?????????????# ??# ##?# #????????? | | ?????????????# #???# ## ##??# ## #????????? | | ?????????????# ###?????# #####???# ?# ###??????? | | ???????????????????????# @#???????# ## ##?????? | | ?????????????????#####?# ####???## #?????? | | ????????????????## ### r #???# #?????? | | ???????????????## ##### ##?????? | | ??????????????## ##### #??????? | | ??????????????# ##???######## ##?????? | | ??????????????# ##???????????# ##????? | | ??????????????## ##????????????## ##???? | | ???????????????### #??????????????# ##??? | | ?????????????????# #??????????????## ##?? | | ?????????????????# #???????????????## ##? | | ?????????????????# #???????????????## ## ## | | ?????????????????# #???????????????# #### | | ?????????????????# ######?????????## #??# | | ?????????????????# #??????#### ##?# | | ????????????????# #### #?????## ##??# | | ##???????????????# #??# #????## ##???# | | ??????????????#### #??# #????# ##????## # | | ?????????????## #### ###??# #??????## # | | ?????????????# ## #??# #????????# ## | | ?????????????# """ ### ##### #?????????####? | | ?????????????# """ #?# #?##%###?????????????? | | ????????????## """ ##?### #??# #???????????????? | | ????????##### """ ##??### #### #???????????????? | | ????##### ##???# #???????????????? | +----------------------------------------------------+ Best States ------------- Heat Dissipation 25 Energy Generation 10 Energy Capacity 250 Matter Stores 300 Matter Capacity 300 Sight Range 18 Terrain Scan Density 10 Armor Coverage 150 Evasion (%) 62 Item Schematics ----------------- None Robot Schematics ------------------ None Fabricated ------------ Nothing Repaired ---------- Nothing Studied --------- None Alien Tech Used ----------------- None Achievements -------------- None Challenges ------------ None Game ------ Seed ArcsightDeflectorPower Manual? 0 Play Time 00:23:56 Cumulative 19.6 hours Start 2025.12.21 @ 00:58:06 End 2025.12.21 @ 01:21:59 Sessions 1 Manual Loads 0 Difficulty Rogue Special Mode None Game No. 39 Rogue 39 Adventurer 0 Explorer 0 Win Type - Total 0 Types 0/0/0/0/0/0/0/0/0/0 Lore% 14 Gallery% 22 Achievement% 15 Wizard Run 0 Options --------- Layout 1 ASCII 0 Keyboard 0 Movement Numpad Keybinds 0 Fullscreen 0 Font 20/SmallcapsGlow Map View 50x35 Zoom Use 0% Tactical HUD 1 Map Filters NONE Filters NONE Steam 1 RUN: ba296409-2c97-4dcc-a7b0-b15d3b104c31